Workbook

Sheet EAEPE_CA_DEP
B2: Junta Municipal de Agua y Saneamiento de Delicias
B3: Estado Analítico del Ejercicio del Presupuesto de Egresos
B4: Clasificación Administrativa
B5: Del 01 enero al 31 diciembre 2024
B6: Concepto | C6: Egresos | H6: Subejercicio
C7: Aprobado | D7: Ampliaciones/ (Reducciones) | E7: Modificado | F7: Devengado | G7: Pagado
C8: 1 | D8: 2 | E8: 3 = (1+2) | F8: 4 | G8: 5 | H8: 6 = ( 3 - 4)
B10: SISTEMAS | C10: 1549147.3 | D10: -84778.03 | E10: =C10+D10 -> 1464369.27 | F10: 1135498.77 | G10: =F10 -> 1135498.77 | H10: =E10-F10 -> 328870.5
B11: CONTABILIDAD | C11: 32492194.63 | D11: 2306161.08 | E11: =C11+D11 -> 34798355.71 | F11: 34662137.57 | G11: 34650290.49 | H11: =E11-F11 -> 136218.14
B12: COMPRAS | C12: 2143788.09 | D12: 301434.81 | E12: =C12+D12 -> 2445222.9 | F12: 2418184.05 | G12: =F12 -> 2418184.05 | H12: 27038.85
B13: RECURSOS HUMANOS | C13: 19013554.03 | D13: 4503573.6 | E13: 23517127.63 | F13: 23267384.69 | G13: 23187734.69 | H13: 249742.94
B14: TESORERIA | C14: 2160042.2 | D14: -51510.11 | E14: 2108532.09 | F14: 2056001.08 | G14: 2056001.08 | H14: 52531.01
B15: PRESIDENCIA | C15: 6884105.91 | D15: 965680.42 | E15: 7849786.33 | F15: 7809899.09 | G15: 7809899.09 | H15: 39887.24
B16: JURÍDICO | C16: 1443269.18 | D16: 576360.91 | E16: 2019630.09 | F16: 1984092.1 | G16: 1984092.1 | H16: 35537.99
B17: BIENES PATRIMONIALES | C17: 5344081.01 | D17: 210172.47 | E17: 5554253.48 | F17: 5483546.52 | G17: 5483546.52 | H17: 70706.96
B18: SINDICATO | C18: 2459851.6 | D18: 198717.6 | E18: 2658569.2 | F18: 2558612.4 | G18: 2558612.4 | H18: 99956.8
B19: COMERCIAL | C19: 5470980.26 | D19: 1764163.94 | E19: 7235144.2 | F19: 7192175.75 | G19: 7192175.75 | H19: 42968.45
B20: COBRANZA | C20: 13390027.71 | D20: 1131068.09 | E20: 14521095.8 | F20: 14356959.16 | G20: 14356959.16 | H20: 164136.64
B21: CULTURA DEL AGUA | C21: 669932.05 | D21: 37009.53 | E21: 706941.58 | F21: 681108.97 | G21: 681108.97 | H21: 25832.61
B22: JUNTAS RURALES | C22: 1323543.74 | D22: 606382.02 | E22: 1929925.76 | F22: 1881756.55 | G22: 1881756.55 | H22: 48169.21
B23: SUCURSAL 1 | C23: 1670949.63 | D23: -106263.64 | E23: 1564685.99 | F23: 1511894.49 | G23: 1511894.49 | H23: 52791.5
B24: MEDICIÓN | C24: 26062938.45 | D24: 3153227.18 | E24: 29216165.63 | F24: 28881934.76 | G24: 28881934.76 | H24: 334230.87
B25: FACTURACIÓN | C25: 6577921.49 | D25: 66553.66 | E25: 6644475.15 | F25: 6476722.79 | G25: 6476722.79 | H25: 167752.36
B26: PADRÓN DE USUARIOS | C26: 1675005.16 | D26: -172849.74 | E26: 1502155.42 | F26: 1490455.89 | G26: 1490455.89 | H26: 11699.53
B27: SUCURSAL 2 | C27: 1811411.76 | D27: 18188.5 | E27: 1829600.26 | F27: 1733445.34 | G27: 1727136.54 | H27: 96154.92
B28: AGUA Y ALCANTARILLADO | C28: 35894256.96 | D28: 1374481.06 | E28: 37268738.02 | F28: 36570559.2 | G28: 36570559.2 | H28: 698178.82
B29: MANTENIMIENTO | C29: 9880494.59 | D29: 1381841.55 | E29: 11262336.14 | F29: 11058525.94 | G29: 11058525.94 | H29: 203810.2
B30: CONTROL DE CALIDAD | C30: 15618619.69 | D30: -1111056.79 | E30: 14507562.9 | F30: 14376772.08 | G30: 14376772.08 | H30: 130790.82
B31: ESTUDIOS Y PROYECTOS | C31: 3449136.42 | D31: 47427.99 | E31: 3496564.41 | F31: 3466317.51 | G31: 3466317.51 | H31: 30246.9
B32: DIRECCIÓN TÉCNICA | C32: 88672114.27 | D32: 21090907.92 | E32: 109763022.2 | F32: 106482603.5 | G32: 103599745.9 | H32: 3280418.73
B33: PLANTA NORTE | C33: 10012500 | D33: -4133174.19 | E33: 5879325.81 | F33: 1930723.18 | G33: 1811794.4 | H33: 3948602.63
B34: PLANTA PONIENTE | C34: 3017500 | D34: 1244080 | E34: 4261580 | F34: 3922579.61 | G34: 3613878.63 | H34: =E34-F34 -> 339000.39
B35: SANEAMIENTO | C35: 7712766.9 | D35: -3487799.83 | E35: 4224967.07 | F35: 3935255.55 | G35: 3935255.55 | H35: 289711.52
B41: Total del Gasto | C41: =SUM(C9:C40) -> 306400133 | D41: =SUM(D9:D40) -> 31830000 | E41: =SUM(C41,D41) -> 338230133 | F41: =SUM(F9:F40) -> 327325146.5 | G41: =SUM(G9:G40) -> 323916853.3 | H41: =E41-F41 -> 10904986.53
B43: BAJO PROTESTA DE DECIR VERDAD DECLARAMOS QUE LOS ESTADOS FINANCIEROS Y SUS NOTAS, SON RAZONABLEMENTE CORRECTOS
B44: Y SON RESPONSABILIDAD DEL EMISOR
C48: LIC JUAN CARLOS VELASCO PONCE | F48: C.P. ALBERTO ARAGON RUIZ
C49: DIRECTOR EJECUTIVO | F49: DIRECTOR FINANCIERO
